Workbook

Sheet Coefficients
D1: Quartic Functions
B3: This program lets you investigate the
D4: behavior of quartic functions
D7: based on the values of a, b, c, d and e.
C10: What is the the value of a (- 3 to 3)? | E10: =G10/10-3 -> 0.4 | F10: 62 | G10: 34
C12: What is the the value of b (- 5 to 5)? | E12: =G12/100-5 -> -0.69 | F12: 62 | G12: 431
C14: What is the the value of c (- 5 to 5)? | E14: =G14/100-5 -> -3.54 | F14: 62 | G14: 146
C16: What is the the value of d (- 5 to 5)? | E16: =G16/100-5 -> 0.04 | F16: 62 | G16: 504 | L16: =" y = "&TEXT(a,"0.0")&"x^4 + ("&TEXT(b,"0.00")& ")x^3 + ("&TEXT(cc,"0.00")&")x^2 + ("&TEXT(d,"0.00")&")x + "&TEXT(e,"0.00") -> y = 0.4x^4 + (-0.69)x^3 + (-3.54)x^2 + (0.04)x + 2.15
C18: What is the the value of e (- 5 to 5)? | E18: =G18/100-5 -> 2.15 | F18: 62 | G18: 715
B23: Click each item below for suggestions and investigations
D24: Item 1
D25: Item 2
D26: Item 3
D27: Item 4
D28: Item 5
D29: Item 6
A32: Created by: Sheldon P. Gordon
A33: Farmingdale StateCollege
A34: Development of this module was supported by the
A35: NSF's Division of Undergraduate Education
A36: under grants DUE-0310123 and DUE-0442160.

Sheet 5 Points
D1: Quartic Functions
D3: This program lets you investigate the
D4: behavior of the quartic function
D7: through five given points.
D8: (x1, y1), (x2, y2), (x3, y3), (x4, y4), (x5, y5)
C11: For the first point (x1, y1):
D12: What is x1 (1 to 5)? | F12: =G12/10-5 -> -3.1 | G12: 19
D14: What is y1 (-10 to 10)? | F14: =G14/10-10 -> 4.5 | G14: 145
C16: For the second point (x2, y2):
D17: What is x2 (-5 to 5)? | F17: =G17/10-5 -> -1.5 | G17: 35
D19: What is y2 (-10 to 10)? | F19: =G19/10-10 -> 1 | G19: 110
C21: For the third point (x3, y3):
D22: What is x3 (-5 to 5)? | F22: =G22/10-5 -> 0.2 | G22: 52
D24: What is y3 (-10 to 10)? | F24: =G24/10-10 -> -3.4 | G24: 66
C26: For the fourth point (x4, y4):
D27: What is x4 (-5 to 5)? | F27: =G27/10-5 -> 1.5 | G27: 65
D29: What is y4 (-10 to 10)? | F29: =G29/10-10 -> -1.1 | G29: 89
C31: For the fifth point (x5, y5):
D32: What is x5 (-5 to 5)? | F32: =G32/10-5 -> 2.8 | G32: 78
D34: What is y5 (-10 to 10)? | F34: =G34/10-10 -> 0.8 | G34: 108
B37: Click each item below for suggestions and investigations
E38: Item 1
E39: Item 2
E40: Item 3

Sheet Sheet3
C2: Coefficients
C4: -4 | D4: =a*C4^4+b*C4^3+cc*C4^2+d*C4+e -> 91.91 | E4: 0 | F4: 1
C5: -1 | D5: =a*C5^4+b*C5^3+cc*C5^2+d*C5+e -> -0.34
C6: 1 | D6: =a*C6^4+b*C6^3+cc*C6^2+d*C6+e -> -1.64
C7: 2 | D7: =a*C7^4+b*C7^3+cc*C7^2+d*C7+e -> -11.05
C8: 4 | D8: =a*C8^4+b*C8^3+cc*C8^2+d*C8+e -> 3.91
C10: Disc= | D10: =9*b^2-24*a*cc -> 38.2689
B12: IP = | C12: =IF(D10<0,"",(-3*b-SQRT(D10))/12/a) -> -0.8575387967 | D12: =IF(C12="","",a*C12^4+b*C12^3+cc*C12^2+d*C12+e) -> 0.163909414
C13: =IF(D10<0,"",(-3*b+SQRT(D10))/12/a) -> 1.720038797 | D13: =IF(C13="","",a*C13^4+b*C13^3+cc*C13^2+d*C13+e) -> -8.264505517
A17: 5 points
A19: ='5 Points'!F12 -> -3.1 | B19: ='5 Points'!F14 -> 4.5
A20: ='5 Points'!F17 -> -1.5 | B20: ='5 Points'!F19 -> 1
A21: ='5 Points'!F22 -> 0.2 | B21: ='5 Points'!F24 -> -3.4
A22: ='5 Points'!F27 -> 1.5 | B22: ='5 Points'!F29 -> -1.1
A23: ='5 Points'!F32 -> 2.8 | B23: ='5 Points'!F34 -> 0.8

Sheet Sheet4
